bitfinex-derivatives/quotes_SOLF0:USTF0_20250419
["timestamp","ask_amount","ask_price","bid_price","bid_amount"]
[1745026838066,1.21312185,135.94,133.69,4.36210311]
[1745026838268,1.21333424,135.93,133.7,4.36362858]
[1745026838566,1.21333424,135.92,133.71,4.36362858]
[1745026838763,1.21333424,135.92,133.72,3.000298]
[1745026838969,1.21333424,135.91,134.73,24.0755497]
[1745026839269,1.21333424,135.9,134.73,24.0755497]
[1745026839470,1.21333424,135.89,133.75,3.000298]
[1745026839671,1.21333424,135.88,134.73,24.0755497]
[1745026839863,1.21333424,135.87,134.73,24.0755497]
[1745026840170,1.21333424,135.86,133.78,3.000298]
[1745026840371,1.21333424,135.85,134.73,24.0755497]
[1745026840570,1.21333424,135.84,134.73,24.0755497]
[1745026840764,1.21338917,135.83,133.81,3.00050184]
[1745026840968,1.21338917,135.82,134.73,24.0755497]
[1745026841171,1.21338917,135.81,134.73,24.0755497]
[1745026841374,1.21338917,135.8,133.84,3.00050184]
[1745026841570,1.21338917,135.79,134.73,24.0755497]
[1745026841770,1.21338917,135.78,134.73,24.0755497]
[1745026841969,1.21338917,135.77,133.87,3.00050184]
[1745026842171,1.2883163,135.9,134.73,24.0755497]
[1745026842366,1.21339093,135.89,134.73,24.0755497]
[1745026842571,1.21339093,135.88,133.88,3.00052732]
[1745026842770,1.21339093,135.87,134.73,24.0755497]
[1745026842971,1.21339093,135.86,134.73,24.0755497]
[1745026843174,1.21339093,135.85,133.91,3.00052732]
[1745026843370,1.21339093,135.84,133.92,4.36390428]
[1745026843568,1.21339093,135.83,134.74,24.0755497]
[1745026843773,1.21339093,135.82,134.74,24.0755497]
[1745026843973,1.21339093,135.81,133.95,3.00052732]
[1745026844173,1.21339093,135.8,134.74,24.0755497]
[1745026844371,1.21339093,135.79,134.74,24.0755497]
[1745026844574,1.2883163,135.9,133.65,1.29063363]
[1745026844774,1.21322877,135.78,134.74,24.0755497]
[1745026844974,1.21322877,135.77,133.99,2.99965622]
[1745026845171,1.21322877,135.77,134.74,24.0755497]
[1745026845373,1.21322877,135.76,134.74,24.0755497]
[1745026845578,1.21322877,135.75,134.02,2.99965622]
[1745026845779,1.21322877,135.74,134.74,24.0755497]
[1745026845979,1.21322877,135.73,134.74,24.0755497]
[1745026846180,1.21322877,135.73,134.04,2.99965622]
[1745026846380,1.21322877,135.72,134.74,24.0755497]
[1745026846581,1.21322877,135.71,134.74,24.0755497]
[1745026846781,1.21322877,135.7,134.07,2.99965622]
[1745026847081,1.21322877,135.69,134.74,24.0755497]
[1745026847282,1.21322877,135.68,134.74,24.0755497]
[1745026847483,1.21322877,135.67,134.1,2.99965622]
[1745026847683,1.21322877,135.66,134.74,24.0755497]
[1745026847984,1.21322877,135.65,134.74,24.0755497]
[1745026848183,1.21322877,135.64,134.13,2.99965622]
[1745026848384,1.21322877,135.63,134.74,24.0755497]
[1745026848583,1.2883163,135.9,134.74,24.0755497]
[1745026848784,1.21330541,135.89,134.16,3.00008311]
[1745026848985,1.21330541,135.88,134.74,24.0755497]
[1745026849186,1.21330541,135.87,134.18,3.00008311]
[1745026849386,1.21330541,135.86,134.76,24.0755497]
[1745026849590,1.21330541,135.85,134.76,24.0755497]
[1745026849882,2.72798675,136.13,134.76,24.0755497]
[1745026850087,2.501059,135.84,134.76,24.0755497]
[1745026850287,1.21298112,135.84,134.76,24.0755497]
[1745026850485,2.50102209,135.83,134.76,24.0755497]
[1745026850687,1.21294421,135.82,134.76,24.0755497]
[1745026851081,1.21294421,135.81,134.78,24.0755497]
[1745026851283,1.21295349,135.81,134.78,24.0755497]
[1745026851485,1.21295349,135.8,134.09,1.28807788]
[1745026851687,1.21295349,135.79,134.78,24.0755497]
[1745026851886,1.21295349,135.78,134.78,24.0755497]
[1745026852088,1.21295349,135.78,134.11,2.99769693]
[1745026852288,1.21295349,135.77,134.78,24.0755497]
[1745026852589,1.21295349,135.76,134.78,24.0755497]
[1745026852789,1.21295349,135.75,134.14,2.99769693]
[1745026852983,1.21295349,135.74,134.78,24.0755497]
[1745026853189,1.21295349,135.73,134.78,24.0755497]
[1745026853389,1.21295349,135.72,134.17,2.99769693]
[1745026853590,1.21295349,135.71,134.78,24.0755497]
[1745026853791,1.21295349,135.7,134.78,24.0755497]
[1745026853991,1.21295349,135.7,134.79,24.0755497]
[1745026854288,1.21295349,135.69,134.79,24.0755497]
[1745026854491,1.21295349,135.68,134.22,2.99769693]
[1745026854690,1.21295349,135.67,134.79,24.0755497]
[1745026854893,1.21295349,135.66,134.79,24.0755497]
[1745026855092,1.21295349,135.65,134.25,2.99769693]
[1745026855291,1.21295349,135.65,134.79,24.0755497]
[1745026855592,2.50217662,135.64,134.27,2.99769693]
[1745026855793,1.21295349,135.63,134.79,24.0755497]
[1745026856093,1.21295349,135.62,134.79,24.0755497]
[1745026856396,1.21295349,135.61,134.3,2.99769693]
[1745026856593,1.21295349,135.6,134.79,24.0755497]
[1745026856892,1.28922313,135.64,134.79,24.0755497]
[1745026856893,1.21295349,135.59,134.79,24.0755497]
[1745026857093,1.21295349,135.58,134.33,2.99769693]
[1745026857292,1.21295349,135.57,134.79,24.0755497]
[1745026857493,1.21295349,135.56,134.79,24.0755497]
[1745026857693,1.21295349,135.55,134.36,2.99769693]
[1745026857992,1.21295349,135.54,134.79,24.0755497]
[1745026858193,1.21295349,135.53,134.79,24.0755497]
[1745026858492,1.21295349,135.52,134.39,2.99769693]
[1745026858692,1.21295349,135.52,134.79,24.0755497]
[1745026858693,1.21295349,135.51,134.79,24.0755497]
[1745026859193,1.21295349,135.5,134.42,2.99769693]
[1745026859492,1.21295349,135.49,134.79,24.0755497]
[1745026859694,1.21295349,135.48,134.79,24.0755497]
[1745026859994,1.21295349,135.47,134.8,24.0755497]
[1745026860294,2.72798675,136.15,134.8,24.0755497]
[1745026860494,1.2130898,136.14,134.81,24.0755497]
[1745026860694,1.2130898,136.13,134.81,24.0755497]
[1745026860895,1.2130898,136.12,134.49,2.9973648]
[1745026861095,1.2130898,136.11,134.81,24.0755497]
[1745026861398,1.2130898,136.1,134.81,24.0755497]
[1745026861597,1.2130898,136.09,134.52,2.9973648]
[1745026861791,1.2130898,136.08,134.81,24.0755497]
[1745026862097,1.2130898,136.07,134.81,24.0755497]
[1745026862395,1.2130898,136.06,133.51,2.9973648]
[1745026862597,1.2130898,136.05,134.81,24.0755497]
[1745026862793,1.2130898,136.04,134.81,24.0755497]
[1745026862993,1.2130898,136.03,133.54,2.9973648]
[1745026863198,1.2130898,136.02,134.81,24.0755497]
[1745026863495,1.2130898,136.01,134.81,24.0755497]
[1745026863695,1.2130898,136.0,134.72,1.28781571]
[1745026863897,1.2130898,135.99,134.81,24.0755497]
[1745026864096,1.2130898,135.98,134.81,24.0755497]
[1745026864399,1.2130898,135.97,134.72,1.28781571]
[1745026864597,1.2130898,135.96,134.81,24.0755497]
[1745026864797,1.2130898,135.95,134.81,24.0755497]
[1745026865096,1.2130898,135.95,134.72,1.28781571]
[1745026865097,1.2130898,135.94,134.72,1.28781571]
[1745026865298,1.21287693,135.94,134.81,24.0755497]
[1745026865495,1.21287693,135.93,134.72,1.28781571]
[1745026865693,1.21287693,135.92,134.81,24.0755497]
[1745026865900,1.21287693,135.91,134.72,1.28781571]
[1745026866197,1.21287693,135.9,134.82,24.0755497]
[1745026866399,1.21287693,135.89,134.82,24.0755497]
[1745026866600,1.21287693,135.88,134.72,1.28781571]
[1745026866899,1.21287693,135.87,134.82,24.0755497]
[1745026867102,1.21287693,135.86,134.82,24.0755497]
[1745026867300,1.21287693,135.85,134.82,24.0755497]
[1745026867500,1.21287693,135.84,134.82,24.0755497]
[1745026867701,1.21287693,135.83,134.82,24.0755497]
[1745026868000,1.21287693,135.82,134.82,24.0755497]
[1745026868200,1.21287693,135.81,134.82,24.0755497]
[1745026868401,1.21287693,135.8,134.82,24.0755497]
[1745026868600,1.21287693,135.79,134.82,24.0755497]
[1745026868803,1.21287693,135.78,134.82,24.0755497]
[1745026868998,1.28776805,135.97,134.82,24.0755497]
[1745026869201,1.21280389,135.77,134.82,24.0755497]
[1745026869402,1.21280389,135.96,134.82,24.0755497]
[1745026869599,1.21280389,135.76,134.82,24.0755497]
[1745026869805,1.21280389,135.95,134.82,24.0755497]
[1745026870004,1.21280389,135.75,134.82,24.0755497]
[1745026870302,1.21280389,135.94,134.82,24.0755497]
[1745026870502,1.21280389,135.74,134.82,24.0755497]
[1745026870703,2.50052429,135.74,134.82,24.0755497]
[1745026870901,1.2877204,135.74,134.75,1.2877204]
[1745026871096,1.21280389,135.73,134.83,24.0755497]
[1745026871299,1.21280389,135.72,134.83,24.0755497]
[1745026871702,1.21280393,135.71,134.83,24.0755497]
[1745026871898,1.21280393,135.7,134.75,1.2877204]
[1745026872102,1.21280393,135.69,134.85,24.0755497]
[1745026872507,1.21280393,135.68,133.77,2.99493292]
[1745026872707,1.21280393,135.68,134.85,24.0755497]
[1745026872901,1.21280393,135.67,134.86,24.0755497]
[1745026873102,1.21280393,135.66,134.86,24.0755497]
[1745026873408,1.21280393,135.65,133.8,2.99493292]
[1745026873603,1.21280393,135.64,134.86,24.0755497]
[1745026873901,1.21280393,135.63,134.86,24.0755497]
[1745026874103,1.21280393,135.62,133.83,2.99493292]
[1745026874407,1.21278186,135.61,134.86,24.0755497]
[1745026874707,1.21278186,135.6,134.86,24.0755497]
[1745026874906,1.21278186,135.59,134.87,24.0755497]
[1745026875308,1.28762511,135.65,133.53,2.70693143]
[1745026875309,1.21278186,135.58,134.8,1.28757747]
[1745026875610,1.21278186,135.57,134.87,24.0755497]
[1745026875807,1.21278186,135.56,134.87,24.0755497]
[1745026876011,1.21278186,135.55,134.88,24.0755497]
[1745026876213,1.21278186,135.54,134.88,24.0755497]
[1745026876413,1.21278186,135.53,134.8,1.28757747]
[1745026876613,1.21278186,135.52,134.8,1.28757747]
[1745026876815,1.21278186,135.51,134.86,24.0755497]
[1745026877016,1.21286382,135.5,134.87,24.0755497]
[1745026877312,1.21286382,135.49,134.87,24.0755497]
[1745026877514,1.21286382,135.48,134.87,24.0755497]
[1745026877708,1.21286382,135.47,134.87,24.0755497]
[1745026877908,1.21286382,135.46,134.88,24.0755497]
[1745026878116,1.21286382,135.45,134.88,24.0755497]
[1745026878315,1.21290129,135.44,134.02,2.99602243]
[1745026878515,1.21290129,135.43,134.88,24.0755497]
[1745026878715,1.21290129,135.42,134.88,24.0755497]
[1745026878915,1.21290129,135.41,134.05,2.99602243]
[1745026879115,1.21290129,135.4,134.88,24.0755497]
[1745026879316,1.21290129,135.39,134.88,24.0755497]
[1745026879511,1.21290129,135.38,134.08,2.99602243]
[1745026879810,1.21289047,135.38,134.88,24.0755497]
[1745026880011,1.28760129,135.39,134.88,24.0755497]
[1745026880012,1.21289047,135.37,134.88,24.0755497]
[1745026880210,1.21289047,135.36,134.11,2.99594931]
[1745026880414,1.21289047,135.35,134.88,24.0755497]
[1745026880610,1.21289047,135.34,134.88,24.0755497]
[1745026880818,1.21289047,135.33,134.14,2.99594931]
[1745026881012,1.2128905,135.33,134.88,24.0755497]
[1745026881218,1.2128905,135.32,134.15,2.99594925]
[1745026881418,1.2128905,135.31,134.88,24.0755497]
[1745026881617,1.28760129,135.39,133.52,2.70693143]
[1745026881618,1.2128905,135.3,134.86,24.0755497]
[1745026881818,1.2128905,135.29,134.86,24.0755497]
[1745026882018,1.2128905,135.28,134.87,24.0755497]
[1745026882212,1.2128905,135.27,134.87,24.0755497]
[1745026882418,1.2128905,135.26,134.2,2.99594925]
[1745026882619,1.2128905,135.25,134.87,24.0755497]
[1745026882818,1.2128905,135.24,134.87,24.0755497]
[1745026883012,1.2128905,135.23,134.23,2.99594925]
[1745026883215,1.2128905,135.22,134.86,24.0755497]
[1745026883415,1.2128905,135.21,134.86,24.0755497]
[1745026883619,1.21313396,135.2,134.86,24.0755497]
[1745026883816,1.21313396,135.19,134.78,1.28779188]
[1745026884023,1.21313396,135.18,134.86,24.0755497]
[1745026884221,1.21313396,135.17,134.86,24.0755497]
[1745026884421,1.21313396,135.16,134.78,1.28779188]
[1745026884721,1.21313396,135.15,134.86,24.0755497]
[1745026884919,1.21326315,135.14,134.85,24.0755497]
[1745026885122,1.21326315,135.13,134.85,24.0755497]
[1745026885322,1.21326315,135.12,134.85,24.0755497]
[1745026885518,1.21326315,135.11,134.85,24.0755497]
[1745026885718,1.21326315,135.1,134.87,24.0755497]
[1745026885924,1.21326315,135.09,134.87,24.0755497]
[1745026886123,1.21326315,135.08,134.88,24.0755497]
[1745026886326,1.21326315,135.07,134.88,24.0755497]
[1745026886526,1.21326315,135.06,134.75,1.2880302]
[1745026886729,1.21326315,135.05,134.88,24.0755497]
[1745026886921,1.21326315,135.04,134.88,24.0755497]
[1745026887221,1.21326315,135.03,134.75,1.2880302]
[1745026887420,1.21326315,135.38,134.88,24.0755497]
[1745026887623,1.21326315,135.02,134.88,24.0755497]
[1745026887826,1.21326315,135.01,134.45,2.99840924]
[1745026888026,1.21326315,135.0,134.88,24.0755497]
[1745026888227,1.21326315,134.99,134.88,24.0755497]
[1745026888528,1.21326315,134.98,134.48,2.99840924]
[1745026888729,2.72798675,136.14,134.88,24.0755497]
[1745026888925,1.2131801,134.97,134.88,24.0755497]
[1745026889125,1.2131801,134.96,134.76,1.28781571]
[1745026889428,1.2131801,134.95,134.88,24.0755497]
[1745026889631,1.2131801,136.13,134.88,24.0755497]
[1745026889827,1.2131801,134.94,134.76,1.28781571]
[1745026890031,2.72798675,136.14,134.88,24.0755497]
[1745026890532,1.21318146,134.93,133.53,2.99581772]
[1745026890732,1.21318146,134.93,134.88,24.0755497]
[1745026890933,2.50099717,136.13,134.88,24.0755497]
[1745026891232,1.21318146,136.12,134.88,24.0755497]
[1745026891430,1.28781571,136.13,134.88,24.0755497]
[1745026891632,1.21326226,136.11,134.88,24.0755497]
[1745026891832,1.21326226,136.1,134.88,24.0755497]
[1745026892027,1.21326226,136.09,134.88,24.0755497]
[1745026892230,1.21326226,136.08,134.88,24.0755497]
[1745026892430,1.21326226,136.07,134.88,24.0755497]
[1745026892632,1.21326226,136.06,134.88,24.0755497]
[1745026892833,1.21326584,136.05,134.77,1.28781571]
[1745026893034,1.21326584,136.04,134.86,24.0755497]
[1745026893231,1.21326584,136.03,134.86,24.0755497]
[1745026893559,1.21326584,136.02,134.87,24.0755497]
[1745026893835,1.21326584,136.01,134.87,24.0755497]
[1745026894133,2.72798675,136.13,134.87,24.0755497]
[1745026894333,1.21319795,136.12,134.87,24.0755497]
[1745026894527,1.21319795,136.11,134.87,24.0755497]
[1745026894730,1.21319795,136.1,134.87,24.0755497]
[1745026894931,1.21319795,136.09,134.87,24.0755497]
[1745026895133,1.21319795,136.08,134.87,24.0755497]
[1745026895332,1.21319795,136.07,134.87,24.0755497]
[1745026895533,1.21319795,136.06,134.87,24.0755497]
[1745026895834,1.21319795,136.05,134.87,24.0755497]
[1745026896028,1.21319795,136.04,134.87,24.0755497]
[1745026896231,1.21319795,136.03,134.87,24.0755497]
[1745026896427,1.21319795,136.02,134.87,24.0755497]
[1745026896635,1.21319795,136.01,134.87,24.0755497]
[1745026896835,1.21319795,136.0,134.87,24.0755497]
[1745026897034,1.21319795,135.99,134.87,24.0755497]
[1745026897235,1.21319795,135.98,134.87,24.0755497]
[1745026897437,1.21319795,135.97,134.87,24.0755497]
[1745026897737,1.21319795,135.96,134.87,24.0755497]
[1745026897936,1.21319795,135.95,134.87,24.0755497]
[1745026898239,1.21318942,135.94,134.87,24.0755497]
[1745026898433,1.21318942,135.93,134.87,24.0755497]
[1745026898634,1.21318942,135.92,134.87,24.0755497]
[1745026898831,1.21318942,135.91,134.87,24.0755497]
[1745026899035,1.21318942,135.9,134.87,24.0755497]
[1745026899335,1.21318942,135.89,134.87,24.0755497]
[1745026899534,1.21318942,135.88,134.87,24.0755497]
[1745026899737,1.21318942,135.87,134.87,24.0755497]
[1745026899937,1.21318942,135.86,134.87,24.0755497]
[1745026900138,1.21318942,135.85,134.87,24.0755497]
[1745026900338,1.21318942,135.84,134.87,24.0755497]
[1745026900540,1.21318942,135.83,134.9,24.0755497]
[1745026900840,1.2128927,135.82,134.9,24.0755497]
[1745026901041,1.2128927,135.81,134.9,24.0755497]
[1745026901237,1.2128927,135.8,134.9,24.0755497]
[1745026901538,1.2128927,135.79,134.9,24.0755497]
[1745026901739,1.2128927,135.78,134.9,24.0755497]
[1745026901938,1.2128927,135.78,134.78,1.28774423]
[1745026901939,1.2128927,135.77,134.91,24.0755497]
[1745026902139,1.2128927,135.76,134.91,24.0755497]
[1745026902342,1.2128927,135.75,134.91,24.0755497]
[1745026902639,1.2128927,135.74,134.91,24.0755497]
[1745026902838,1.2128927,135.73,134.91,24.0755497]
[1745026903038,1.2128927,135.72,134.91,24.0755497]
[1745026903239,1.2128927,135.71,134.91,24.0755497]
[1745026903540,1.2128928,135.7,134.93,24.0755497]
[1745026903841,1.2128928,135.69,134.93,24.0755497]
[1745026904139,1.2128928,135.68,134.93,24.0755497]
[1745026904336,1.2128928,135.67,134.95,24.0755497]
[1745026904534,1.2128928,135.66,134.95,24.0755497]
[1745026904735,1.21258757,135.65,134.95,24.0755497]
[1745026904936,1.21258757,135.64,134.96,24.0755497]
[1745026905137,1.21258757,135.63,134.96,24.0755497]
[1745026905340,1.21258757,135.62,134.97,24.0755497]
[1745026905541,1.21258757,135.61,134.97,24.0755497]
[1745026905744,1.21258757,135.6,134.97,24.0755497]
[1745026905942,1.2874822,135.71,134.98,24.0755497]
[1745026906145,1.21242772,135.7,134.98,24.0755497]
[1745026906343,1.21242772,135.69,134.98,24.0755497]
[1745026906641,1.21242772,135.68,134.98,24.0755497]
[1745026906841,1.21242772,135.67,134.98,24.0755497]
[1745026907140,1.21242772,135.66,134.99,24.0755497]
[1745026907342,1.2874822,135.71,134.99,24.0755497]
[1745026907541,1.2124038,135.7,134.99,24.0755497]
[1745026907741,1.2124038,135.69,134.99,24.0755497]
[1745026908040,1.2124038,135.68,135.0,24.0755497]
[1745026908243,1.2124038,135.67,135.0,24.0755497]
[1745026908540,1.2124038,135.66,135.0,24.0755497]
[1745026908743,1.21241591,135.65,135.0,24.0755497]
[1745026909042,1.21241591,135.64,135.0,24.0755497]
[1745026909445,1.21241591,135.63,135.0,24.0755497]
[1745026909646,1.21241591,135.62,135.0,24.0755497]
[1745026909844,1.21241591,135.61,135.0,24.0755497]
[1745026910039,1.21241591,135.6,135.01,24.0755497]
[1745026910237,1.21241591,135.59,135.01,24.0755497]
[1745026910444,1.21241591,135.59,134.82,1.28705365]
[1745026910741,1.21241591,135.58,135.01,24.0755497]
[1745026911339,1.21241591,135.57,135.01,24.0755497]
[1745026911545,1.21241591,135.56,135.01,24.0755497]
[1745026911842,1.21241591,135.55,135.01,24.0755497]
[1745026912044,1.21241591,135.54,135.02,24.0755497]
[1745026912244,1.21241591,135.53,135.02,24.0755497]
[1745026912444,1.21241591,135.52,135.02,24.0755497]
[1745026912648,1.28705365,135.63,135.02,24.0755497]
[1745026912843,1.21241934,135.62,135.02,24.0755497]
[1745026913045,1.21241934,135.61,135.03,24.0755497]
[1745026913243,1.21241934,135.6,135.03,24.0755497]
[1745026913444,1.21241934,135.59,134.82,1.28705365]
[1745026913640,1.21241934,135.58,135.03,24.0755497]
[1745026913838,1.21241934,135.57,135.03,24.0755497]
[1745026914041,1.21240264,135.56,135.04,24.0755497]
[1745026914340,1.21240264,135.55,135.04,24.0755497]
[1745026914539,1.21240264,135.54,133.66,2.99109725]
[1745026914741,1.21240264,135.53,135.04,24.0755497]
[1745026915038,1.21240264,135.52,135.04,24.0755497]
[1745026915243,3.12761733,136.18,133.57,2.70693143]
[1745026915444,1.21240378,136.17,135.04,24.0755497]
[1745026915645,1.21240378,136.16,133.59,2.99110351]
[1745026915844,1.21240378,136.15,135.04,24.0755497]
[1745026916044,1.21240378,136.14,135.04,24.0755497]
[1745026916344,1.21240378,136.13,133.62,2.99110351]
[1745026916546,1.21240378,136.13,135.04,24.0755497]
[1745026916746,1.21240378,136.12,133.63,4.35349409]
[1745026917046,1.21240378,136.11,135.04,24.0755497]
[1745026917344,1.21240378,136.1,135.04,24.0755497]
[1745026917544,1.21240378,136.09,133.66,2.99110351]
[1745026917745,1.21240378,136.08,135.04,24.0755497]
[1745026917947,1.28695845,136.1,135.04,24.0755497]
[1745026918141,1.21241282,136.09,133.58,2.99114931]
[1745026918340,1.21241282,136.08,135.04,24.0755497]
[1745026918541,1.21241282,136.07,135.04,24.0755497]
[1745026918745,1.21241282,136.07,133.57,2.70693143]
[1745026918746,1.21241282,136.06,133.61,2.99114931]
[1745026918946,1.21241282,136.05,135.04,24.0755497]
[1745026919139,1.21241282,136.04,135.04,24.0755497]
[1745026919340,1.28695845,136.1,133.58,1.2904422]
[1745026919544,1.2124034,136.09,135.05,24.0755497]
[1745026919744,1.2124034,136.08,133.6,2.99110029]
[1745026919944,1.2124034,136.07,135.05,24.0755497]
[1745026920244,1.2124034,136.06,135.05,24.0755497]
[1745026920443,1.2124034,136.05,133.63,2.99110029]
[1745026920646,1.2124034,136.04,135.05,24.0755497]
[1745026920946,1.2124034,136.03,135.05,24.0755497]
[1745026921147,1.2124034,136.02,135.05,24.0755497]
[1745026921446,1.2124034,136.01,135.05,24.0755497]
[1745026921643,1.2124034,136.0,135.05,24.0755497]
[1745026921948,1.2124034,135.99,135.05,24.0755497]
[1745026922148,1.2124034,135.98,135.05,24.0755497]
[1745026922448,1.2124034,135.97,135.05,24.0755497]
[1745026922746,1.2124034,135.96,135.05,24.0755497]
[1745026922947,1.28688706,136.01,135.06,24.0755497]
[1745026923147,1.2122532,135.95,135.06,24.0755497]
[1745026923349,1.2122532,135.94,135.06,24.0755497]
[1745026923544,1.2122532,135.93,135.06,24.0755497]
[1745026923744,1.2122532,135.92,135.06,24.0755497]
[1745026923941,1.28688706,136.01,135.08,24.0755497]
[1745026923942,1.2122532,135.91,135.08,24.0755497]
[1745026924145,1.2122532,135.9,135.08,24.0755497]
[1745026924451,1.21224404,135.89,134.19,2.99014216]
[1745026924748,1.21224404,135.88,135.08,24.0755497]
[1745026924950,1.21224404,135.87,135.08,24.0755497]
[1745026925249,1.21224404,135.86,134.22,2.99014216]
[1745026925449,1.21224404,135.85,135.08,24.0755497]
[1745026925644,1.21224404,135.84,135.08,24.0755497]
[1745026925849,1.21224404,135.83,134.25,2.99014216]
[1745026926050,1.21224404,135.82,135.08,24.0755497]
[1745026926249,1.21224404,135.81,135.08,24.0755497]
[1745026926450,1.21224404,135.8,134.28,2.99014216]
[1745026926650,1.21224404,135.79,135.08,24.0755497]
[1745026926850,1.21224404,135.78,135.08,24.0755497]
[1745026927151,1.21223248,135.77,134.31,2.99005873]
[1745026927452,1.21223248,135.76,135.08,24.0755497]
[1745026927650,1.21223248,135.75,135.08,24.0755497]
[1745026927844,1.21223248,135.74,134.34,2.99005873]
[1745026928049,1.21223248,135.73,135.08,24.0755497]
[1745026928347,1.28865025,135.76,135.08,24.0755497]
[1745026928651,1.21223249,135.75,134.37,2.99005871]
[1745026928851,1.21223249,135.74,135.09,24.0755497]
[1745026929153,1.21223249,135.73,135.09,24.0755497]
[1745026929451,1.21223249,135.72,134.4,2.99005871]
[1745026929652,3.12761733,136.18,135.09,24.0755497]
[1745026929855,1.21222029,135.71,135.09,24.0755497]
[1745026930054,1.21222029,136.17,134.41,2.98988028]
[1745026930353,1.21222029,136.16,135.09,24.0755497]
[1745026930555,1.21222029,136.15,135.09,24.0755497]
[1745026930854,1.21222029,136.14,134.43,2.98988028]
[1745026931053,1.21222029,136.14,135.09,24.0755497]
[1745026931253,1.21222029,136.14,134.43,2.98988028]
[1745026931453,1.21222029,136.13,134.44,2.98988028]
[1745026931653,1.21222029,136.13,135.06,24.0755497]
[1745026931853,1.21222029,136.12,134.46,2.98988028]
[1745026932156,1.21222029,136.11,135.04,24.0755497]
[1745026932354,3.12761733,136.18,135.04,24.0755497]
[1745026932549,1.21254336,136.1,133.6,2.99200369]
[1745026932752,1.21254336,136.09,135.03,24.0755497]
[1745026932953,1.21254336,136.08,135.03,24.0755497]
[1745026933153,1.21254336,136.07,133.63,2.99200369]
[1745026933354,1.21254336,136.06,135.03,24.0755497]
[1745026933552,1.21254336,136.05,135.03,24.0755497]
[1745026933752,1.21273412,136.04,133.66,2.99331494]
[1745026933949,1.21273412,136.03,135.03,24.0755497]
[1745026934756,1.21273412,136.02,135.03,24.0755497]
[1745026934956,1.21273412,136.01,135.04,24.0755497]
[1745026935251,1.21273412,136.0,135.04,24.0755497]
[1745026935550,1.21273412,135.99,135.04,24.0755497]
[1745026935755,1.21273412,135.98,135.04,24.0755497]
[1745026935955,1.21273412,135.97,135.04,24.0755497]
[1745026936256,1.21273412,135.96,135.04,24.0755497]
[1745026936556,1.21273412,135.95,135.04,24.0755497]
[1745026936756,1.21273412,135.94,135.04,24.0755497]
[1745026936958,1.21273412,135.93,135.04,24.0755497]
[1745026937254,1.21273412,135.92,135.04,24.0755497]
[1745026937456,1.21273412,135.91,135.04,24.0755497]
[1745026937756,1.28710125,135.96,135.04,24.0755497]
[1745026937957,1.21261442,135.95,135.05,24.0755497]
[1745026938156,1.21261442,135.94,135.05,24.0755497]
[1745026938456,3.12761733,136.18,135.05,24.0755497]
[1745026938457,1.21261442,135.93,135.05,24.0755497]
[1745026938657,1.21261442,135.92,135.05,24.0755497]
[1745026938857,1.21261442,135.91,135.05,24.0755497]
[1745026939059,3.12761733,136.18,135.05,24.0755497]
[1745026939359,1.21261441,136.17,135.05,24.0755497]
[1745026939557,1.21261441,136.16,135.05,24.0755497]
[1745026939759,1.21261441,136.15,134.4,1.28707745]
[1745026940059,1.21261441,136.14,135.05,24.0755497]
[1745026940252,1.21261441,136.13,135.05,24.0755497]
[1745026940559,1.21261441,136.12,134.43,2.99419531]
[1745026940758,1.21261441,136.11,135.05,24.0755497]
[1745026940959,1.21261441,136.1,135.05,24.0755497]
[1745026941160,1.21261441,136.09,134.46,2.99419531]
[1745026941360,1.21261441,136.08,135.04,24.0755497]
[1745026941562,1.21261441,136.07,135.03,24.0755497]
[1745026941762,1.28857868,136.08,134.99,24.0755497]
[1745026942061,1.21293683,136.07,134.99,24.0755497]
[1745026942461,1.21293683,136.06,134.99,24.0755497]
[1745026942758,1.21293683,136.05,134.99,24.0755497]
[1745026942963,1.21293683,136.04,134.99,24.0755497]
[1745026943164,1.21326502,136.03,134.99,24.0755497]
[1745026943464,1.21326502,136.02,134.99,24.0755497]
[1745026943666,1.21326502,136.01,134.99,24.0755497]
[1745026943964,1.21326502,136.0,134.99,24.0755497]
[1745026944264,1.21326502,135.99,134.99,24.0755497]
[1745026944563,2.72798675,136.14,135.01,24.0755497]
[1745026944765,1.21311908,136.13,135.02,24.0755497]
[1745026945066,1.21311908,136.12,135.02,24.0755497]
[1745026945266,1.21311908,136.11,133.52,2.99741103]
[1745026945468,1.21311908,136.1,135.02,24.0755497]
[1745026945668,1.21311908,136.09,135.02,24.0755497]
[1745026945869,1.21311908,136.08,133.55,2.99741103]
[1745026946169,1.21311908,136.07,135.02,24.0755497]
[1745026946370,1.21311908,136.06,135.02,24.0755497]
[1745026946569,1.21311908,136.06,133.53,1.29101668]
[1745026946570,1.21311908,136.05,133.58,2.99741103]
[1745026946762,1.21311908,136.04,135.0,24.0755497]
[1745026946968,1.21311908,136.03,135.0,24.0755497]
[1745026947169,1.21311908,136.02,133.61,2.99741103]
[1745026947364,1.21311908,136.01,134.99,24.0755497]
[1745026947570,1.21311908,136.0,134.99,24.0755497]
[1745026947770,1.21327755,135.99,133.64,2.99844227]
[1745026948070,1.21327755,135.98,134.99,24.0755497]
[1745026948271,1.21327755,135.97,134.99,24.0755497]
[1745026948468,1.21327755,135.96,133.67,2.99844227]
[1745026948669,1.21327755,135.95,134.99,24.0755497]